bitfinex/quotes_BTCUSD_20250208
["timestamp","ask_amount","ask_price","bid_price","bid_amount"]
[1739016432695,2.4e-07,96275.0,96274.0,0.41730865]
[1739016433001,0.32010024,96275.0,96274.0,0.44930865]
[1739016433620,0.32010024,96275.0,96274.0,0.44030865]
[1739016433757,0.32010024,96275.0,96274.0,0.44930865]
[1739016434174,0.32010024,96275.0,96274.0,0.40830865]
[1739016434363,0.32010024,96275.0,96274.0,0.41730865]
[1739016434564,0.32010024,96275.0,96274.0,0.44930865]
[1739016435009,0.32010024,96275.0,96274.0,0.44030865]
[1739016435427,0.32010024,96275.0,96274.0,0.44930865]
[1739016435825,0.32010024,96275.0,96274.0,0.44030865]
[1739016436187,0.32010024,96275.0,96274.0,0.44930865]
[1739016436573,0.28060064,96275.0,96274.0,0.44030865]
[1739016436812,0.28060064,96275.0,96274.0,0.44930865]
[1739016437166,0.28060064,96275.0,96274.0,0.44030865]
[1739016437843,0.28060064,96275.0,96274.0,0.44930865]
[1739016438231,0.28060064,96275.0,96274.0,0.53298897]
[1739016438604,0.28060064,96275.0,96274.0,0.54198897]
[1739016439089,0.28060064,96290.0,96289.0,0.305781]
[1739016439295,0.28060064,96290.0,96289.0,0.43128465]
[1739016441134,0.28060064,96290.0,96289.0,0.44828465]
[1739016441651,0.28060064,96290.0,96289.0,0.45853086]
[1739016441789,0.28060064,96290.0,96289.0,0.45053086]
[1739016441996,0.28060064,96290.0,96289.0,0.44153086]
[1739016442205,0.28060064,96290.0,96289.0,0.45953086]
[1739016442410,0.28060064,96290.0,96289.0,0.48025667]
[1739016442822,0.36200064,96290.0,96289.0,0.48025667]
[1739016443025,0.36200064,96290.0,96289.0,0.45953086]
[1739016443233,0.36200064,96290.0,96289.0,0.42628465]
[1739016443457,0.36200064,96290.0,96289.0,0.26728465]
[1739016443837,0.36210734,96290.0,96289.0,0.314781]
[1739016444032,0.36210734,96290.0,96289.0,0.305781]
[1739016444246,0.36210734,96290.0,96289.0,0.322781]
[1739016444590,0.36210734,96290.0,96289.0,0.305781]
[1739016444924,0.36210734,96290.0,96289.0,0.321781]
[1739016445126,0.36210734,96290.0,96289.0,0.314781]
[1739016445353,0.36210734,96290.0,96289.0,0.305781]
[1739016445557,0.36210734,96290.0,96289.0,0.311781]
[1739016445758,0.36210734,96290.0,96289.0,0.319781]
[1739016447341,0.58100734,96290.0,96289.0,0.319781]
[1739016456096,0.49960734,96290.0,96289.0,0.319781]
[1739016457899,0.62960734,96290.0,96289.0,0.319781]
[1739016460847,0.58210734,96290.0,96289.0,0.319781]
[1739016464902,0.60155861,96290.0,96289.0,0.319781]
[1739016465153,0.60155861,96290.0,96289.0,0.014]
[1739016465565,0.64875861,96290.0,96289.0,0.014]
[1739016466548,0.64875861,96290.0,96289.0,0.006]
[1739016467534,0.90704126,96290.0,96289.0,0.008]
[1739016467936,0.90704126,96290.0,96289.0,0.014]
[1739016468108,0.62156226,96290.0,96271.0,0.207746]
[1739016468331,0.0793,96280.0,96274.0,0.15022407]
[1739016468501,0.0793,96278.0,96274.0,0.30602807]
[1739016468700,0.0793,96276.0,96274.0,0.30602807]
[1739016468904,0.0793,96276.0,96274.0,0.00022407]
[1739016469104,0.08033997,96276.0,96274.0,0.00022407]
[1739016469491,0.08033997,96276.0,96275.0,0.09790439]
[1739016469697,0.08033997,96276.0,96275.0,0.00522407]
[1739016470147,0.09979124,96276.0,96275.0,0.00822407]
[1739016470642,0.09979124,96276.0,96275.0,0.00522407]
[1739016470870,0.09979124,96276.0,96275.0,0.00322407]
[1739016471037,0.09979124,96276.0,96275.0,0.00522407]
[1739016471625,0.59929188,96276.0,96275.0,0.00622407]
[1739016471848,0.59825191,96276.0,96275.0,0.00622407]
[1739016472060,0.57880064,96276.0,96275.0,0.00622407]
[1739016472662,0.57880064,96276.0,96275.0,0.00322407]
[1739016473024,0.57880064,96276.0,96275.0,0.00522407]
[1739016473782,0.57880064,96276.0,96275.0,0.00222407]
[1739016474130,0.88260629,96276.0,96275.0,0.00222407]
[1739016474333,0.72680429,96276.0,96275.0,0.00322407]
[1739016474467,0.88260629,96276.0,96275.0,0.00322407]
[1739016474668,0.72680429,96276.0,96275.0,0.00322407]
[1739016474914,0.88260629,96276.0,96275.0,0.00322407]
[1739016475114,0.88260629,96276.0,96275.0,0.00222407]
[1739016475427,0.62430064,96276.0,96275.0,0.00122407]
[1739016475570,0.62430064,96276.0,96275.0,0.00222407]
[1739016476466,0.2189,96289.0,96288.0,0.155782]
[1739016478257,0.2189,96289.0,96288.0,0.162782]
[1739016478860,0.2189,96289.0,96288.0,0.155782]
[1739016479481,0.2189,96289.0,96288.0,0.162782]
[1739016479856,0.2189,96289.0,96288.0,0.168782]
[1739016480294,0.2189,96289.0,96288.0,0.162782]
[1739016480799,0.2189,96289.0,96288.0,0.164782]
[1739016481133,0.2189,96289.0,96288.0,0.171782]
[1739016483210,0.2189,96289.0,96288.0,0.162782]
[1739016483675,0.2189,96289.0,96288.0,0.171782]
[1739016484323,0.2189,96289.0,96288.0,0.164782]
[1739016484667,0.2189,96289.0,96288.0,0.170782]
[1739016485101,0.2189,96289.0,96288.0,0.161782]
[1739016485252,0.2189,96289.0,96288.0,0.170782]
[1739016485897,0.2189,96289.0,96288.0,0.155782]
[1739016486290,0.2189,96289.0,96288.0,0.168782]
[1739016486493,0.49950064,96289.0,96288.0,0.168782]
[1739016486647,0.49950064,96289.0,96288.0,0.160782]
[1739016487053,0.49950064,96289.0,96288.0,0.167782]
[1739016488030,0.49950064,96289.0,96288.0,0.162782]
[1739016488230,0.49950064,96289.0,96288.0,0.155782]
[1739016488533,0.49950064,96289.0,96288.0,0.166782]
[1739016488915,0.49950064,96289.0,96288.0,0.171782]
[1739016489118,0.49950064,96289.0,96288.0,0.164782]
[1739016489529,0.49950064,96289.0,96288.0,0.171782]
[1739016489734,0.57850064,96289.0,96288.0,0.171782]
[1739016489926,0.57850064,96289.0,96288.0,0.009]
[1739016490134,0.57850064,96289.0,96288.0,0.171782]
[1739016491186,0.57850064,96289.0,96288.0,0.162782]
[1739016491501,0.57850064,96289.0,96288.0,0.012]
[1739016491743,0.57860734,96289.0,96288.0,0.160782]
[1739016491914,0.57860734,96289.0,96288.0,0.166782]
[1739016492215,0.57860734,96289.0,96288.0,0.170782]
[1739016492510,0.57860734,96289.0,96288.0,0.164782]
[1739016492712,0.57860734,96289.0,96288.0,0.169782]
[1739016492870,0.57860734,96289.0,96288.0,0.005]
[1739016493092,0.62420734,96289.0,96288.0,0.159782]
[1739016493683,0.62420734,96289.0,96288.0,0.163782]
[1739016494391,0.62420734,96289.0,96288.0,0.159782]
[1739016494605,0.62420734,96289.0,96288.0,0.162782]
[1739016494800,0.62420734,96289.0,96288.0,0.158782]
[1739016495003,0.62420734,96289.0,96288.0,0.155782]
[1739016495233,0.62420734,96289.0,96288.0,0.160782]
[1739016495607,0.62420734,96289.0,96288.0,0.155782]
[1739016495804,0.62420734,96289.0,96288.0,0.156782]
[1739016496228,0.62420734,96289.0,96288.0,0.158782]
[1739016497273,0.49960734,96289.0,96288.0,0.158782]
[1739016497469,0.49960734,96289.0,96288.0,0.003]
[1739016497669,0.62790734,96289.0,96288.0,0.003]
[1739016498035,0.62790734,96289.0,96288.0,0.001]
[1739016498275,0.62790734,96289.0,96288.0,0.005]
[1739016498480,0.62790734,96289.0,96288.0,0.007]
[1739016498793,0.62790734,96289.0,96288.0,0.002]
[1739016498998,0.62790734,96289.0,96288.0,0.005]
[1739016499404,0.78368834,96289.0,96288.0,0.005]
[1739016500385,0.62790734,96289.0,96288.0,0.005]
[1739016501422,0.78368834,96289.0,96288.0,0.005]
[1739016502807,0.62790734,96289.0,96288.0,0.005]
[1739016505044,0.49960734,96289.0,96288.0,0.160782]
[1739016506667,0.49960734,96289.0,96288.0,0.158782]
[1739016508546,0.49960734,96289.0,96288.0,0.161782]
[1739016508750,0.49960734,96289.0,96288.0,0.166782]
[1739016508948,0.49960734,96289.0,96288.0,0.160782]
[1739016509146,0.49960734,96289.0,96288.0,0.155782]
[1739016509491,0.49960734,96289.0,96288.0,0.173782]
[1739016514370,0.49960734,96289.0,96288.0,0.17400628]
[1739016514577,0.49960734,96289.0,96288.0,0.16500628]
[1739016514789,0.49960734,96289.0,96288.0,0.15600628]
[1739016514993,0.54780734,96289.0,96288.0,0.00922428]
[1739016515189,0.54780734,96289.0,96288.0,0.01822428]
[1739016515512,0.54789678,96289.0,96288.0,0.00022428]
[1739016515674,0.62579678,96289.0,96288.0,0.00722428]
[1739016515892,0.72830043,96289.0,96288.0,0.01522428]
[1739016516093,0.72830043,96289.0,96288.0,0.00822428]
[1739016516289,0.72830043,96289.0,96288.0,0.00722428]
[1739016518165,0.72830043,96289.0,96288.0,0.02222428]
[1739016518384,0.72830043,96289.0,96288.0,0.00822428]
[1739016518535,0.72830043,96289.0,96288.0,0.01522428]
[1739016520186,0.88408143,96289.0,96288.0,0.01522428]
[1739016520386,0.72830043,96289.0,96288.0,0.01522428]
[1739016521249,0.88408143,96289.0,96288.0,0.01522428]
[1739016521710,0.72830043,96289.0,96288.0,0.01522428]
[1739016522520,0.72830043,96289.0,96288.0,0.00022428]
[1739016522729,0.72830043,96289.0,96288.0,0.00522428]
[1739016523135,0.62579678,96289.0,96288.0,0.00512276]
[1739016523308,0.62579678,96289.0,96288.0,0.0048373]
[1739016527353,0.78157778,96289.0,96288.0,0.0048373]
[1739016527557,0.62579678,96289.0,96288.0,0.0048373]
[1739016528166,0.62579678,96289.0,96288.0,0.00506158]
[1739016529450,0.78157778,96289.0,96288.0,0.00506158]
[1739016529649,0.88408143,96289.0,96288.0,0.00506158]
[1739016532058,0.88408143,96289.0,96288.0,0.00306158]
[1739016532447,0.88508143,96289.0,96288.0,0.00022428]
[1739016532879,0.88608143,96289.0,96288.0,0.00022428]
[1739016533079,0.88508143,96289.0,96288.0,0.00022428]
[1739016533485,0.98958508,96289.0,96288.0,0.00022428]
[1739016533685,0.98858508,96289.0,96288.0,0.00022428]
[1739016534094,0.98958508,96289.0,96288.0,0.00022428]
[1739016534346,0.88708143,96289.0,96288.0,0.00022428]
[1739016540763,0.155802,96276.0,96275.0,0.00022407]
[1739016541010,0.38504562,96276.0,96275.0,0.00022407]
[1739016541215,0.38400565,96276.0,96275.0,0.00022407]
[1739016541344,0.96292878,96276.0,96275.0,0.00022407]
[1739016542449,0.96292878,96276.0,96275.0,0.00422407]
[1739016543076,0.96292878,96276.0,96275.0,0.00022407]
[1739016543379,0.97314666,96276.0,96275.0,0.00022407]
[1739016546147,0.571302,96271.0,96255.0,0.08330426]
[1739016546347,0.15583,96259.0,96255.0,0.08330426]
[1739016546565,0.15687097,96258.0,96250.0,0.11609257]
[1739016546969,0.00103997,96258.0,96250.0,0.11609257]
[1739016547170,0.00103997,96258.0,96250.0,0.27193457]
[1739016547389,0.00103997,96258.0,96255.0,0.009]
[1739016547584,0.00108527,96258.0,96255.0,0.009]
[1739016548011,0.155837,96254.0,96241.0,0.15022428]
[1739016548189,0.15687697,96254.0,96253.0,0.00922428]
[1739016548400,0.65500519,96254.0,96253.0,0.00922428]
[1739016548599,0.83496887,96254.0,96253.0,0.00922428]
[1739016549360,0.83496887,96254.0,96253.0,0.00822428]
[1739016549562,0.83496887,96254.0,96253.0,0.00022428]
[1739016551300,0.83696887,96254.0,96253.0,0.00022428]
[1739016551611,0.83896887,96254.0,96253.0,0.00022428]
[1739016554152,0.94147252,96254.0,96253.0,0.00022428]
[1739016554826,0.83896887,96254.0,96253.0,0.00022428]
[1739016558056,0.20779,96251.0,96241.0,0.00022428]
[1739016558281,0.155857,96242.0,96241.0,0.00022428]
[1739016559690,0.15689697,96242.0,96241.0,0.00222428]
[1739016560409,0.15689697,96242.0,96241.0,0.00622428]
[1739016560612,0.25940062,96242.0,96241.0,0.00222428]
[1739016560821,0.25836065,96242.0,96241.0,0.00222428]
[1739016561137,0.25836065,96242.0,96241.0,0.00622428]
[1739016563307,0.34136065,96242.0,96241.0,0.00622428]
[1739016563906,0.83906459,96242.0,96241.0,0.00622428]
[1739016564692,0.75606459,96242.0,96241.0,0.00622428]
[1739016566649,0.90766824,96242.0,96241.0,0.00622428]
[1739016567594,0.90766824,96242.0,96241.0,0.00222428]
[1739016567595,0.80516459,96242.0,96241.0,0.00222428]
[1739016568586,0.80516459,96242.0,96241.0,0.00022428]
[1739016569180,0.80616459,96242.0,96241.0,0.00022428]
[1739016570870,0.8255996,96242.0,96241.0,0.00022428]
[1739016571084,0.92810325,96242.0,96241.0,0.00022428]
[1739016573428,0.7764996,96242.0,96241.0,0.00022428]
[1739016574439,0.8583996,96242.0,96241.0,0.00022428]
[1739016582351,0.7764996,96242.0,96241.0,0.00022428]
[1739016584370,0.67399595,96242.0,96241.0,0.00022428]
[1739016584601,0.65456094,96242.0,96241.0,0.00022428]
[1739016585099,0.75706459,96242.0,96241.0,0.00022428]
[1739016587015,0.77653544,96242.0,96241.0,0.00022428]
[1739016596258,0.80770895,96242.0,96241.0,0.00022428]
[1739016597586,0.77653544,96242.0,96241.0,0.00022428]
[1739016602355,0.80771351,96242.0,96241.0,0.00022428]
[1739016603518,0.99081716,96242.0,96241.0,0.00022428]
[1739016605586,0.571505,96237.0,96229.0,0.00022407]
[1739016605716,0.155876,96230.0,96229.0,0.00022407]
[1739016605915,0.65305566,96230.0,96229.0,0.00022407]
[1739016606388,0.49717966,96230.0,96229.0,0.00022407]
[1739016606585,0.65305566,96230.0,96229.0,0.00022407]
[1739016606789,0.67252651,96230.0,96229.0,0.00622407]
[1739016606951,0.67252651,96230.0,96229.0,0.01022407]
[1739016607150,0.67252651,96230.0,96229.0,0.00022407]
[1739016607732,0.67252651,96230.0,96229.0,0.00622407]
[1739016608120,0.67252651,96230.0,96229.0,0.00022407]
[1739016608701,0.67252651,96230.0,96229.0,0.00422407]
[1739016608900,0.67252651,96230.0,96229.0,0.00022407]
[1739016609108,0.67252651,96230.0,96229.0,0.00222407]
[1739016609501,0.67252651,96230.0,96229.0,0.00522407]
[1739016613262,0.51665051,96230.0,96229.0,0.00522407]
[1739016613663,0.67252651,96230.0,96229.0,0.00522407]
[1739016619238,0.67252651,96230.0,96229.0,0.00522407]
[1739016619607,0.51665051,96230.0,96229.0,0.00522407]
[1739016620042,0.51665051,96230.0,96229.0,0.16110207]
[1739016620492,0.51665051,96230.0,96229.0,0.38890207]
[1739016620696,0.51665051,96230.0,96229.0,0.40928884]
[1739016621127,0.51665051,96230.0,96229.0,0.41959014]
[1739016621811,0.51665051,96230.0,96229.0,0.41459014]
[1739016621952,0.51665051,96230.0,96229.0,0.42159014]
[1739016622153,0.49717966,96230.0,96229.0,0.42959014]
[1739016622411,0.49717966,96230.0,96229.0,0.41459014]
[1739016622555,0.49717966,96230.0,96229.0,0.42259014]
[1739016622750,0.49717966,96230.0,96229.0,0.43159014]
[1739016623175,0.49717966,96230.0,96229.0,0.43126686]
[1739016623818,0.49717966,96230.0,96229.0,0.40057879]
[1739016624884,0.49717966,96230.0,96229.0,0.39257879]
[1739016625068,0.49717966,96230.0,96229.0,0.32177879]
[1739016625511,0.49717966,96230.0,96229.0,0.31277879]
[1739016625723,0.49717966,96230.0,96229.0,0.32177879]
[1739016626166,0.49717966,96230.0,96229.0,0.31277879]
[1739016626516,0.49717966,96230.0,96229.0,0.31477879]
[1739016626721,0.49717966,96230.0,96229.0,0.32177879]
[1739016628179,0.51662301,96230.0,96229.0,0.32177879]
[1739016630450,0.51662301,96230.0,96229.0,0.016]
[1739016632126,0.59403393,96230.0,96229.0,0.016]
[1739016632522,0.69653758,96230.0,96229.0,0.016]
[1739016632921,0.69653758,96230.0,96229.0,0.009]
[1739016633129,0.69653758,96230.0,96220.0,0.07624443]
[1739016633339,0.69653758,96230.0,96208.0,0.30056132]
[1739016633340,0.0778,96228.0,96208.0,0.09268032]
[1739016633545,0.10354362,96227.0,96208.0,0.09268032]
[1739016633762,0.0778,96214.0,96208.0,0.09268032]
[1739016633969,0.67852328,96214.0,96208.0,0.09268032]
[1739016634169,0.67748331,96214.0,96208.0,0.09268032]
[1739016634669,0.67748331,96214.0,96201.0,0.00022428]
[1739016634670,0.72803758,96214.0,96213.0,0.00067771]
[1739016635280,1.69114123,96214.0,96213.0,0.00967771]
[1739016635483,1.58863758,96214.0,96213.0,0.00967771]
[1739016636144,1.97243758,96214.0,96213.0,0.00067771]
[1739016637041,1.96243758,96214.0,96213.0,0.00067771]
[1739016637266,1.97243758,96214.0,96213.0,0.00367771]
[1739016637464,2.07494123,96214.0,96213.0,0.00367771]
[1739016637626,2.23494123,96214.0,96213.0,0.00367771]
[1739016637826,2.23794123,96214.0,96213.0,0.00367771]
[1739016638078,2.36273231,96214.0,96213.0,0.00067771]
[1739016638266,2.36673231,96214.0,96213.0,0.00067771]
[1739016638474,0.01,96209.0,96201.0,0.00022428]
[1739016638647,0.233621,96202.0,96201.0,0.00036032]
[1739016638844,0.33612465,96202.0,96201.0,0.00036032]
[1739016639403,0.355568,96202.0,96201.0,0.00036032]
[1739016640153,0.277868,96202.0,96201.0,0.00036032]
[1739016641387,0.17536435,96202.0,96201.0,0.00136032]
[1739016641624,0.17640432,96202.0,96201.0,0.00136032]
[1739016641881,0.17640432,96202.0,96201.0,0.00036032]
[1739016642079,0.15696097,96202.0,96201.0,0.00036032]
[1739016642685,0.15696097,96202.0,96201.0,0.00136032]
[1739016643194,0.15696097,96202.0,96201.0,0.00036032]
[1739016644184,0.65286292,96202.0,96201.0,0.00036032]
[1739016644389,0.65182295,96202.0,96201.0,0.00036032]
[1739016644592,0.65182295,96202.0,96201.0,0.00136032]
[1739016645134,0.49590195,96202.0,96201.0,0.00136032]
[1739016645272,0.49590195,96202.0,96201.0,0.15728332]
[1739016645705,0.49590195,96202.0,96201.0,0.00136032]
[1739016648049,0.49590195,96202.0,96201.0,0.15728332]
[1739016648478,0.49590195,96202.0,96201.0,0.23258332]
[1739016649380,0.49590195,96202.0,96201.0,0.23158332]
[1739016649611,0.49590195,96202.0,96201.0,0.24058332]
[1739016650034,0.49590195,96202.0,96201.0,0.24658332]
[1739016650235,0.49590195,96202.0,96201.0,0.24058332]
[1739016650632,0.49590195,96202.0,96201.0,0.24658332]
[1739016650835,0.49590195,96202.0,96201.0,0.23758332]
[1739016651058,0.49590195,96202.0,96201.0,0.24658332]
[1739016651607,0.49590195,96202.0,96201.0,0.23758332]
[1739016652012,0.49590195,96202.0,96201.0,0.24658332]
[1739016652184,0.49590195,96202.0,96201.0,0.44458332]
[1739016652625,0.49590195,96202.0,96201.0,0.43858332]
[1739016652942,0.49590195,96202.0,96201.0,0.44458332]
[1739016653349,0.49590195,96202.0,96201.0,0.54708697]
[1739016654219,0.49590195,96202.0,96201.0,0.53208697]
[1739016654418,0.49590195,96202.0,96201.0,0.53808697]
[1739016654625,0.49590195,96202.0,96201.0,0.54708697]
[1739016659028,0.27880195,96202.0,96201.0,0.54708697]
[1739016660060,0.27880195,96202.0,96201.0,0.47178697]
[1739016660260,0.27880195,96202.0,96201.0,0.32128332]
[1739016660467,0.49590195,96202.0,96201.0,0.32128332]
[1739016666210,0.49590195,96202.0,96201.0,0.17128332]
[1739016678032,0.49590195,96202.0,96201.0,0.32128332]
[1739016679231,0.49590195,96202.0,96201.0,0.39658332]
[1739016681933,0.27880195,96202.0,96201.0,0.49908697]
[1739016683524,0.27880195,96202.0,96201.0,0.42378697]
[1739016694479,0.27880195,96202.0,96201.0,0.32128332]
[1739016695083,0.49590195,96202.0,96201.0,0.32128332]
[1739016719841,0.49314727,96202.0,96201.0,0.32128332]
[1739016724398,0.49034727,96202.0,96201.0,0.32128332]
[1739016727971,0.49045407,96202.0,96201.0,0.32128332]
[1739016739517,0.49045407,96202.0,96201.0,0.01536032]
[1739016739743,0.72757507,96202.0,96201.0,0.01536032]
[1739016740155,0.57165407,96202.0,96201.0,0.01536032]
[1739016740581,0.57165407,96202.0,96201.0,0.00936032]
[1739016741214,0.57165407,96202.0,96201.0,0.00036032]
[1739016741426,0.57165407,96202.0,96201.0,0.00136032]
[1739016741924,0.57165407,96202.0,96201.0,0.00036032]
[1739016742315,0.57165407,96202.0,96201.0,0.00136032]
[1739016742740,0.87737872,96202.0,96201.0,0.00136032]
[1739016744215,0.87737872,96202.0,96201.0,0.00036032]
[1739016744874,0.97988237,96202.0,96201.0,0.00036032]
[1739016745903,0.98748237,96202.0,96201.0,0.00036032]
[1739016746151,0.27014695,96197.0,96191.0,0.00022428]
[1739016746326,0.281938,96192.0,96191.0,0.00035638]
[1739016746558,0.4869453,96192.0,96191.0,0.00035638]
[1739016747419,1.83609225,96192.0,96191.0,0.00035638]
[1739016747622,1.83609225,96192.0,96191.0,0.00535638]
[1739016748010,1.83609225,96192.0,96191.0,0.00035638]
[1739016748239,1.83609225,96192.0,96191.0,0.00335638]
[1739016748839,1.83609225,96192.0,96191.0,0.00835638]
[1739016749199,1.84649771,96192.0,96191.0,0.00835638]
[1739016751242,1.84649771,96192.0,96191.0,0.00335638]
[1739016751443,1.86949771,96192.0,96191.0,0.00035638]
[1739016751870,1.87249771,96192.0,96191.0,0.00035638]
[1739016752085,1.89589728,96192.0,96191.0,0.00035638]
[1739016753422,1.89189728,96192.0,96191.0,0.00035638]
[1739016753581,1.88889728,96192.0,96191.0,0.00035638]
[1739016753783,1.89289728,96192.0,96191.0,0.00135638]
[1739016753981,1.89589728,96192.0,96191.0,0.001]
[1739016754192,0.233559,96179.0,96177.0,0.00022428]
[1739016754385,1.8422663,96179.0,96178.0,0.00026944]
[1739016754610,1.86166587,96179.0,96178.0,0.00026944]
[1739016756541,1.75916222,96179.0,96178.0,0.00026944]
[1739016756742,1.79817661,96179.0,96178.0,0.00026944]
[1739016757230,1.79017661,96179.0,96178.0,0.00026944]
[1739016757434,1.79417661,96179.0,96178.0,0.00026944]
[1739016757565,1.79917661,96179.0,96178.0,0.00026944]
[1739016757765,1.90168026,96179.0,96178.0,0.00026944]
[1739016758430,1.75072126,96179.0,96160.0,0.0762653]
[1739016758655,0.207949,96177.0,96161.0,0.155987]
[1739016758854,0.155973,96171.0,96160.0,0.07635496]
[1739016759054,0.10354362,96170.0,96160.0,0.07635496]
[1739016759273,0.25951762,96170.0,96161.0,0.155988]
[1739016759802,0.25951762,96170.0,96160.0,0.07635496]
[1739016759803,0.25951762,96170.0,96162.0,0.155986]
[1739016760003,0.47336629,96169.0,96162.0,0.155986]
[1739016760251,0.10354362,96168.0,96162.0,0.155986]
[1739016760627,0.10354362,96168.0,96161.0,0.003]
[1739016760827,0.10354362,96168.0,96161.0,0.158988]
[1739016761027,0.10354362,96168.0,96161.0,0.155988]
[1739016761449,0.10354362,96168.0,96162.0,0.003]
[1739016762075,0.12294319,96168.0,96162.0,0.158986]
[1739016762453,0.12294319,96168.0,96163.0,0.155985]
[1739016762454,0.12190322,96168.0,96163.0,0.155985]
[1739016762628,0.01939957,96168.0,96165.0,0.15598]
[1739016762826,0.01939957,96168.0,96163.0,0.155985]
[1739016763031,0.01939957,96168.0,96166.0,0.155979]
[1739016764497,0.01939957,96167.0,96166.0,0.155979]
[1739016764698,0.01939957,96167.0,96166.0,0.156979]
[1739016765337,0.01939957,96167.0,96166.0,0.001]
[1739016765838,0.01939957,96167.0,96163.0,0.156985]
[1739016766040,0.49276586,96167.0,96166.0,0.001]
[1739016766191,0.47336629,96167.0,96166.0,0.001]
[1739016766809,0.47336629,96167.0,96163.0,0.155985]
[1739016767006,0.47336629,96167.0,96163.0,0.156985]
[1739016767219,0.47336629,96167.0,96163.0,0.003]
[1739016767790,0.47336629,96167.0,96163.0,0.002]
[1739016768091,0.47336629,96167.0,96163.0,0.157984]
[1739016768491,0.01942837,96166.0,96163.0,0.157984]
[1739016769444,0.01942837,96166.0,96163.0,0.155984]
[1739016769643,0.01942837,96166.0,96164.0,0.155983]
[1739016769999,0.01942837,96165.0,96164.0,0.155983]
[1739016770203,0.01942837,96165.0,96163.0,0.003]
[1739016770406,0.01942837,96165.0,96163.0,0.156984]
[1739016770719,0.01942837,96165.0,96164.0,0.002]
[1739016770949,0.01942837,96165.0,96164.0,0.003]
[1739016772113,0.49279466,96165.0,96164.0,0.001]
[1739016772874,0.49279466,96165.0,96163.0,0.158984]
[1739016772875,0.49279466,96165.0,96163.0,0.155984]
[1739016773174,0.49279466,96165.0,96164.0,0.002]
[1739016773780,0.49279466,96165.0,96164.0,0.001]
[1739016774464,0.49279466,96165.0,96164.0,0.156983]
[1739016775779,0.49279466,96165.0,96164.0,0.158983]
[1739016775994,0.49279466,96165.0,96164.0,0.157983]
[1739016776533,0.49279466,96165.0,96164.0,0.159983]
[1739016776879,0.49279466,96165.0,96164.0,0.165983]
[1739016777075,0.49279466,96165.0,96164.0,0.169983]
[1739016777305,0.49279466,96165.0,96164.0,0.159983]
[1739016777538,0.49279466,96165.0,96164.0,0.163983]
[1739016777919,0.49279466,96165.0,96164.0,0.159983]
[1739016778076,0.49279466,96165.0,96164.0,0.163983]
[1739016778853,0.49279466,96165.0,96164.0,0.168983]
[1739016781381,0.49279466,96165.0,96164.0,0.17928659]
[1739016781584,0.49279466,96165.0,96164.0,0.168983]
[1739016781790,0.49279466,96165.0,96164.0,0.163983]
[1739016782205,0.49279466,96165.0,96164.0,0.169983]
[1739016782566,0.49279466,96165.0,96164.0,0.161983]
[1739016782743,0.49279466,96165.0,96164.0,0.165983]
[1739016788023,0.49279466,96165.0,96164.0,0.1660898]
[1739016788024,0.47336629,96165.0,96164.0,0.1660898]
[1739016788340,0.47336629,96165.0,96164.0,0.3617898]
[1739016789387,0.26756629,96165.0,96164.0,0.48729345]
[1739016789590,0.26756629,96165.0,96164.0,0.56379345]
[1739016789805,0.26756629,96165.0,96164.0,0.59611321]
[1739016790425,0.26756629,96165.0,96164.0,0.56379345]
[1739016790652,0.26756629,96165.0,96164.0,0.55979345]
[1739016790830,0.26756629,96165.0,96164.0,0.59209152]
[1739016790982,0.26756629,96165.0,96164.0,0.58609152]
[1739016791532,0.26756629,96165.0,96164.0,0.59309152]
[1739016791883,0.26756629,96165.0,96164.0,0.59809152]
[1739016792476,0.26756629,96165.0,96164.0,0.56579345]
[1739016793852,0.26756629,96165.0,96164.0,0.56079345]
[1739016794035,0.26756629,96165.0,96164.0,0.55379345]
[1739016794235,0.26756629,96165.0,96164.0,0.58605402]
[1739016794478,0.26756629,96165.0,96164.0,0.55379345]
[1739016794881,0.26756629,96165.0,96164.0,0.56279345]
[1739016795094,0.26756629,96165.0,96164.0,0.57079345]
[1739016795453,0.26756629,96165.0,96164.0,0.56179345]
[1739016795654,0.26756629,96165.0,96164.0,0.57079345]
[1739016808580,0.26756629,96165.0,96164.0,0.44859345]
[1739016809230,0.26756629,96165.0,96164.0,0.42559345]
[1739016810393,0.34796629,96165.0,96164.0,0.3230898]
[1739016810604,0.55376629,96165.0,96164.0,0.3230898]
[1739016813795,0.55376629,96165.0,96164.0,0.1671068]
[1739016813996,0.55376629,96165.0,96164.0,0.3230898]
[1739016817635,0.47336629,96165.0,96164.0,0.3230898]
[1739016819548,0.47336629,96165.0,96164.0,0.44859345]
[1739016822396,0.26756629,96165.0,96164.0,0.44859345]
[1739016827104,0.26756629,96165.0,96164.0,0.48091266]
[1739016827514,0.26756629,96165.0,96164.0,0.44859345]
[1739016829601,0.26756629,96165.0,96164.0,0.48091457]
[1739016830180,0.26756629,96165.0,96164.0,0.44859345]
[1739016830610,0.26756629,96165.0,96164.0,0.48091448]
[1739016830803,0.26756629,96165.0,96164.0,0.44859345]
[1739016831497,0.26756629,96165.0,96164.0,0.48091428]
[1739016835235,0.26779057,96165.0,96164.0,0.48091428]
[1739016839699,0.26779057,96165.0,96164.0,0.44859345]
[1739016840567,0.26779057,96165.0,96164.0,0.48092588]
[1739016840909,0.26779057,96165.0,96164.0,0.44859345]
[1739016841518,0.26779057,96165.0,96164.0,0.48092261]
[1739016844016,0.26779057,96165.0,96164.0,0.45792261]
[1739016844219,0.26779057,96165.0,96164.0,0.3230898]
[1739016844421,0.31399057,96165.0,96164.0,0.3230898]
[1739016845044,0.39419057,96165.0,96164.0,0.1730898]
[1739016845217,0.41368592,96165.0,96164.0,0.1730898]
[1739016846390,0.61948592,96165.0,96164.0,0.1730898]
[1739016863211,0.61948592,96165.0,96164.0,0.0171068]
[1739016864180,0.65062534,96165.0,96164.0,0.0171068]
[1739016864385,0.80660634,96165.0,96164.0,0.0171068]
[1739016865003,0.80660634,96165.0,96164.0,0.0091068]
[1739016865202,0.90910999,96165.0,96164.0,0.0021068]
[1739016865607,0.90910999,96165.0,96164.0,0.0091068]
[1739016866013,0.90910999,96165.0,96164.0,0.0021068]
[1739016866419,0.90910999,96165.0,96164.0,0.0051068]
[1739016866838,0.90910999,96165.0,96164.0,0.0021068]
[1739016867039,0.90910999,96165.0,96164.0,0.0001068]
[1739016868411,0.91010999,96165.0,96164.0,0.0001068]
[1739016869601,0.9100584,96165.0,96164.0,0.0001068]
[1739016872946,0.9090584,96165.0,96164.0,0.0001068]
[1739016873184,0.9100584,96165.0,96164.0,0.0001068]
[1739016873408,1.01156205,96165.0,96164.0,0.0001068]
[1739016874140,1.01256205,96165.0,96164.0,0.0001068]
[1739016874489,0.55633389,96161.0,96160.0,8.966e-05]
[1739016874690,0.65883754,96161.0,96160.0,8.966e-05]
[1739016875936,0.70942072,96161.0,96160.0,8.966e-05]